[Event "Charlotte Summer IM B 2022"]
[Site "Charlotte"]
[Date "2022.07.26"]
[Round "3.2"]
[White "Kolay, Alex"]
[Black "Homa, Seth"]
[Result "1-0"]
[ECO "D31"]
[WhiteElo "2188"]
[BlackElo "2237"]
[Annotator "TA"]
[PlyCount "179"]
[EventDate "2022.07.24"]
[EventType "tourn"]
[EventCountry "USA"]
[SourceTitle "playchess.com"]
[Source "ChessBase"]
[SourceQuality "1"]
[TimeControl "5400+30"]

{[%evp 9,179,21,26,1,3,2,7,0,9,0,0,0,0,0,1,0,31,0,0,0,0,0,0,-6,-6,-10,-10,-10,-8,-10,-10,-16,0,0,0,-7,8,-5,45,43,46,-18,-16,-12,-4,-98,-90,-92,-110,-186,-162,-131,-80,-125,0,0,0,0,33,-175,-153,-213,-198,-210,-208,-306,-163,-244,-250,-262,-264,-259,-268,-262,-241,-339,-331,-1544,-1220,-1419,-370,-394,-399,-398,-402,-380,-354,-401,-390,-442,-449,-447,-392,-345,-231,-358,-79,-274,-2,-8,-8,-48,0,0,0,0,0,0,0,0,0,0,231,215,29970,4161,2412,0,29963,815,815,815,815,812,29976,29962,29962,29966,29967,29967,29961,29962,29956,29940,29974,29975,29975,29974,29973,29975,29976,29971,29980,29980,29980,29981,29981,29980,29982,29982,29983,29984,29984,29985,29985,29986,29986,29987,29987,29988,29988,29989,29989,8,29990,29991,29992,29992,29992,29991,29995,501]} 1. d4 {[%emt 0:00:41]} d5 {[%emt 0:00:18]} 2. c4 {[%emt 0:00:08]} e6 {[%emt 0:00:10]} 3. Nc3 {[%emt 0:00:13]} a6 {[%emt 0:00:09]} 4. cxd5 {[%emt 0:04:23]} exd5 {[%emt 0:00:46]} 5. Nf3 {[%emt 0:00:17]} c6 {[%emt 0:01:04]} 6. Bg5 {[%emt 0:12:34] D31: Queen's Gambit Declined: Semi-Slav without ...Nf6 (+ Marshall Gambit and Noteboom) and Exchange Variation lines without ...Nf6.} Be7 {[%emt 0:00:16]} 7. Bxe7 {[%emt 0:00:59]} Nxe7 {[%emt 0:02:48]} 8. e3 {[%emt 0:00:42] The position is equal.} O-O {[%emt 0:00:11]} 9. Bd3 {[%emt 0:01:08]} Bf5 {[%emt 0:00:14]} 10. O-O {[%emt 0:03:05]} Nd7 {[%emt 0:01:03]} 11. Rc1 {[%emt 0:06:25] [#]} Nf6 $146 {[%emt 1:29:01]} ({Predecessor:} 11... Re8 12. h3 Bxd3 13. Qxd3 Nf6 14. Nd2 Nc8 15. Na4 Nd6 16. Nc5 a5 17. a4 Qb6 {0-1 (48) Omelja,A (2515)-Lenderman,A (2600) Chess.com INT 2022}) 12. Ne5 {[%emt 0:05:40]} g6 {[%emt 0:00:00]} 13. Qb3 {[%emt 0:03:09]} Bxd3 {[%emt 0:00:00]} 14. Nxd3 {[%emt 0:00:06]} Rb8 {[%emt 0:00:00]} 15. Na4 {[%emt 0:15:29]} Nf5 {[%emt 0:00:00]} 16. Qb6 {[%emt 0:02:26]} Qe7 {[%emt 0:00:00]} 17. Qb4 {[%emt 0:03:45]} Nd6 {[%emt 0:00:00]} 18. Rfe1 {[%emt 0:10:57]} Rfe8 {[%emt 0:00:00]} 19. b3 {[%emt 0:04:15]} h5 {[%emt 0:00:00]} 20. Ne5 {[%emt 0:05:32]} Kg7 {[%emt 0:00:00]} 21. Nc5 {[%emt 0:03:15]} Rbc8 {[%emt 0:00:00]} 22. h3 {[%emt 0:12:08]} Ng8 {[%emt 0:05:30]} 23. Qd2 {[%emt 0:02:32]} f6 {[%emt 0:00:00]} ({Black should try} 23... Ne4 $11 24. Nxe4 dxe4) 24. Ned3 $1 $14 {[%emt 0:00:19]} Nh6 {[%emt 0:00:00]} 25. Qc2 {[%emt 0:02:08]} (25. f3 $14) 25... Nhf5 $11 {[%emt 0:00:00]} 26. Nf4 {[%emt 0:00:29]} Qf7 {[%emt 0:00:00]} 27. g4 {[%emt 0:00:40]} (27. Qd1 $11 {keeps the balance.}) 27... hxg4 $17 {[%emt 0:00:00]} 28. hxg4 {[%emt 0:00:03]} Nh4 {[%emt 0:00:00]} 29. Red1 {[%emt 0:00:57]} (29. Qe2 $17) 29... Ne4 $19 {[%emt 0:00:00]} 30. Kf1 {[%emt 0:00:31]} Ng5 {[%emt 0:00:00]} ({Better is} 30... f5 31. Qe2 g5) 31. Ke2 $17 {[%emt 0:00:28]} Nhf3 {[%emt 0:00:00]} ({Black should play} 31... f5 $1 $17 {[%cal Rf5g4]} 32. Kd3 fxg4) 32. Qd3 {[%emt 0:00:28]} Re7 {[%emt 0:00:00][%cal Be8e7,Be7e4,Be4f4][%mdl 32]} 33. Rh1 {[%emt 0:00:35]} Rce8 {[%emt 0:00:00]} 34. Rcf1 $2 {[%emt 0:00:30]} (34. Kd1 $14 {stays ahead.}) 34... b6 $1 $19 {[%emt 0:01:15]} 35. Nxa6 {[%emt 0:00:16]} (35. Na4 $17) 35... Re4 $1 {[%emt 0:00:08]} 36. Kd1 {[%emt 0:00:40]} Qa7 {[%emt 0:01:40]} 37. Nb4 {[%emt 0:00:33]} (37. a4 $142 Nxd4 38. Nxg6 Nxb3 39. Nh4) 37... Nxd4 {[%emt 0:01:38]} (37... Qa3 $142 38. Nc2 (38. Qc3 $2 Rxf4 39. Nd3 Rfe4 $19) 38... Qb2) 38. exd4 {[%emt 0:00:29]} (38. Nc2 {was worth a try.} Ndf3 39. Kc1 (39. Qc3 $2 c5 $19)) 38... Rxf4 {[%emt 0:00:09]} 39. Qd2 {[%emt 0:00:24]} Ree4 {[%emt 0:00:45]} (39... Rxg4 40. f3 Rg3 41. Kc1 $17 (41. Qh2 $2 Rh3 $19)) 40. Nxc6 {[%emt 0:00:37]} Qd7 {[%emt 0:02:50]} 41. f3 {[%emt 0:00:30]} Rxf3 {[%emt 0:00:22]} (41... Nxf3 $2 42. Qc3 $19 (42. Rxf3 $2 Qxg4 43. Kc1 Qxf3 $19)) 42. Rxf3 {[%emt 0:00:26]} (42. Ne5 $142 Rxf1+ 43. Rxf1) 42... Qxg4 {[%emt 0:00:02][%mdl 64] Pin} 43. Qh2 $2 {[%emt 0:00:37]} (43. Qf2 Nxf3 44. Kc1) 43... Qxf3+ {[%emt 0:00:15]} 44. Kc1 {[%emt 0:00:21]} Qc3+ $2 {[%emt 0:00:40]} (44... Re2 {( -> ...Qc3+)} 45. Qh8+ Kf7 46. Nd8+ Ke7 47. Qg7+ Kd6 48. Nb7+ Kc6 49. Nd8+ Kd6 50. Qf8+ Kd7 51. Qg7+ Re7) 45. Qc2 {[%emt 0:00:24]} Re3 {[%emt 0:00:40]} 46. Kb1 {[%emt 0:00:32] Inhibits Qa1+.} Ne4 {[%emt 0:00:50] And now ...Qxc2+ would win.} 47. Qxc3 {[%emt 0:00:24]} Nxc3+ {[%emt 0:01:16][%mdl 4096] Endgame KRN-KRN} (47... Rxc3 48. Nb4 $17) 48. Kb2 {[%emt 0:00:09]} g5 {[%emt 0:00:00]} 49. Nb4 {[%emt 0:00:20]} g4 {[%emt 0:00:00]} 50. Rc1 {[%emt 0:00:24]} Nb5 {[%emt 0:00:34]} 51. Nxd5 {[%emt 0:00:15]} Re2+ {[%emt 0:00:07]} 52. Kb1 {[%emt 0:00:08]} (52. Rc2 $142 Nxd4 53. Rxe2 Nxe2 54. Ne3) 52... g3 $2 {[%emt 0:00:26]} (52... Nxd4 53. Rc4 $17) (52... Rf2 $19 53. Rg1 f5) 53. Nf4 $2 {[%emt 0:00:25]} (53. Rg1 $17 {is the only way for White.}) 53... Na3+ $2 {[%emt 0:00:24]} (53... Nxd4 54. Rd1 g2 55. Rg1 $11) (53... Re3 $19 {Strongly threatening ...Rf3.} 54. Rg1 Kh6) 54. Ka1 $11 {[%emt 0:00:05]} Re3 {[%emt 0:00:31]} 55. d5 {[%emt 0:00:54] Threatens to win with d6.} (55. Kb2 $5 {[%cal Rb2a3]} Nb5 56. a4 Nxd4 57. Rc3 Rxc3 58. Kxc3 $11) 55... Rf3 {[%emt 0:00:33]} (55... Nb5 $15 56. a4 Nd4 57. Rc7+ Kf8) 56. Ne6+ {[%emt 0:01:01]} Kh6 {[%emt 0:00:40] aiming for ...g2.} 57. d6 {[%emt 0:01:29] Hoping for d7.} g2 {[%emt 0:00:07]} (57... Rd3 $2 58. Rh1+ Kg6 59. Nf4+ Kf7 60. Nxd3 $18) 58. d7 {[%emt 0:00:14]} Rf1 {[%emt 0:00:07]} 59. d8=Q {[%emt 0:00:18] White threatens Qd2+ and mate.} Rxc1+ {[%emt 0:00:06]} 60. Kb2 {[%emt 0:00:09]} g1=Q $2 {[%emt 0:00:42]} 61. Qxf6+ $18 {[%emt 0:00:52]} (61. Kxa3 Qf2 62. Qf8+ (62. Qh8+ Kg6 $11) 62... Kg6 63. Qe8+ Kf5 64. Ng7+ (64. Qd7 Ke5 $19) 64... Kf4 65. Ne6+ Kf3 $11) 61... Qg6 $2 {[%emt 0:01:55]} (61... Kh5 $18 62. Qf5+ (62. Kxa3 Qe3 $11) 62... Kh6 63. Qf6+ (63. Kxa3 Qe3 $11) 63... Kh5 64. Qf7+ (64. Kxa3 Qe3 $11) 64... Kh6 65. Qf4+ (65. Kxa3 Rf1 $11) 65... Kg6 66. Qxc1 Qh2+ 67. Kxa3 Qd6+ 68. Ka4 Qd7+ 69. Kb4 Qxe6 70. Qc2+ Kh5) 62. Qh4+ {[%emt 0:00:44]} (62. Qf4+ $142 Kh5 63. Qh2+ (63. Qxc1 Qxe6 64. Qd1+ Kh6 $16) (63. Kxa3 Qh6 $11) 63... Kg4 64. Qg2+ Kf5 65. Nd4+ Kf6 66. Qxg6+ Kxg6 67. Kxc1) 62... Qh5 {[%emt 0:00:08]} 63. Qf6+ {[%emt 0:00:50]} (63. Qxh5+ $18 Kxh5 64. Kxc1) 63... Qg6 {[%emt 0:00:21]} 64. Qh8+ {[%emt 0:00:26]} (64. Qf4+ $142 Kh5 65. Qh2+ (65. Qxc1 Qxe6 66. Qd1+ Kh4 $16) (65. Kxa3 Qh6 $11) 65... Kg4 66. Qg2+ Kf5 67. Nd4+ Kf6 68. Qxg6+ Kxg6 69. Kxc1) 64... Qh7 {[%emt 0:00:08] [#]} 65. Qxh7+ $1 {[%emt 0:00:30]} Kxh7 {[%emt 0:00:02]} 66. Kxc1 {[%emt 0:00:05] Nd4 would kill now. KN-KN} Kg6 {[%emt 0:00:17]} 67. Nc7 {[%emt 0:00:26]} b5 {[%emt 0:00:25]} 68. Kb2 {[%emt 0:00:02]} b4 {[%emt 0:00:06]} 69. Nd5 {[%emt 0:00:11]} Kf5 {[%emt 0:00:10]} 70. Nxb4 {[%emt 0:00:04]} Nb5 {[%emt 0:00:06]} 71. a4 {[%emt 0:00:10]} Nc7 {[%emt 0:00:10]} 72. Kc3 {[%emt 0:00:10]} Ke5 {[%emt 0:00:06]} 73. Kc4 {[%emt 0:00:03]} Kd6 {[%emt 0:00:05]} 74. a5 {[%emt 0:00:21]} Ne6 {[%emt 0:00:09]} 75. Nc2 {[%emt 0:02:01]} Kc7 {[%emt 0:00:25]} 76. Nd4 {[%emt 0:00:21]} Ng5 {[%emt 0:00:32]} 77. b4 {[%emt 0:00:24][%cal Bb3b4,Bb4b5,Bb5b6][%mdl 32]} Ne4 {[%emt 0:00:32]} 78. Ne6+ {[%emt 0:00:25]} Kb8 {[%emt 0:00:10]} 79. Kd5 {[%emt 0:00:40]} Nc3+ {[%emt 0:00:13]} 80. Kc6 {[%emt 0:00:04]} Na2 {[%emt 0:00:40]} 81. b5 {[%emt 0:00:11]} Nb4+ {[%emt 0:00:11]} 82. Kd6 {[%emt 0:00:12]} Ka7 {[%emt 0:00:13]} 83. Nc5 {[%emt 0:00:52]} Kb8 {[%emt 0:00:36]} 84. b6 {[%emt 0:00:09]} Ka8 {[%emt 0:00:14]} 85. a6 {[%emt 0:01:04]} Nxa6 {[%emt 0:00:47]} 86. Nxa6 {[%emt 0:00:04]} Kb7 {[%emt 0:00:07][%csl LRa6,LRb6] [#]} 87. Kc5 $1 {[%emt 0:00:02] White mates.} Ka8 {[%emt 0:00:08]} (87... Kc8 88. Kc6) 88. Nb4 {[%emt 0:00:08]} Kb7 {[%emt 0:00:03]} 89. Kb5 {[%emt 0:00:04]} Ka8 {[%emt 0:00:05]} 90. Ka6 {[%emt 0:00:06] What a bad dream for Black.  Weighted Error Value: White=0.48/Black=0.45} (90. Kc6 $142 Kb8 91. b7 Ka7 {[#]} 92. Na6 $1 {[%mdl 512]} Kxa6 93. b8=Q Ka5 94. Qb5#) 1-0

[Event "Charlotte Summer IM B 2022"]
[Site "Charlotte"]
[Date "2022.07.26"]
[Round "3.3"]
[White "Atanasov, Anthony"]
[Black "Eckert, Doug"]
[Result "1/2-1/2"]
[ECO "A48"]
[WhiteElo "2172"]
[BlackElo "2177"]
[Annotator "TA"]
[PlyCount "35"]
[EventDate "2022.07.24"]
[EventType "tourn"]
[EventCountry "USA"]
[SourceTitle "playchess.com"]
[Source "ChessBase"]
[SourceQuality "1"]
[TimeControl "5400+30"]

{[%evp 14,35,17,10,9,14,6,0,11,0,0,-7,0,-14,10,11,26,15,10,0,23,0,14,0]} 1. d4 {[%emt 0:00:11]} Nf6 {[%emt 1:31:00]} 2. Nf3 {[%emt 0:00:06]} g6 {[%emt 0:00:00]} 3. Bf4 {[%emt 0:01:50]} Bg7 {[%emt 0:00:00]} 4. e3 {[%emt 0:00:42]} O-O {[%emt 0:00:00]} 5. Be2 {[%emt 0:00:34]} d6 {[%emt 0:00:00]} 6. h3 {[%emt 0:00:34]} c5 {[%emt 0:00:00]} 7. O-O {[%emt 0:01:04]} Nc6 {[%emt 0:00:00]} 8. c3 {[%emt 0:00:37]} (8. Nc3 $5 {[%cal Rd4d5]}) 8... Nd5 {[%emt 0:00:00][%cal Bf6d5,Bd5f4,Bf4d3][%mdl 32] A48: 1 d4 Nf6 2 Nf3 g6: Torre, London and Colle Systems.} 9. Bg3 {[%emt 0:00:29]} cxd4 {[%emt 0:00:00]} 10. exd4 {[%emt 0:02:13]} e5 {[%emt 0:00:00]} 11. dxe5 {[%emt 0:14:47]} dxe5 {[%emt 0:00:00]} 12. Nbd2 {[%emt 0:00:22]} Nf4 {[%emt 0:05:30] [#]} 13. Nc4 $146 {[%emt 1:13:31][%cal Oc4e5]} ({Predecessor:} 13. Bc4 Bf5 14. Re1 Qc7 15. Nh4 Be6 16. Bxf4 Bxc4 17. Nxc4 exf4 18. Qb3 Rac8 19. Nf3 {1-0 (89) Chu,W (2422)-Zhang,H (2182) Liaocheng 2021}) 13... Qxd1 {[%emt 0:00:30]} 14. Bxd1 {[%emt 0:00:00]} Nd3 {[%emt 0:00:00]} 15. Be2 Nf4 {[%emt 0:00:00]} 16. Bd1 {[%emt 0:00:00]} Nd3 {[%emt 0:00:00]} 17. Be2 {[%emt 0:00:00]} (17. Bc2 $5 {[%cal Rc2d3]} Bf5 18. Ne3 $14) 17... Nf4 {[%emt 0:02:00]} 18. Bd1 {[%emt 0:00:00] An interesting draw.  Weighted Error Value: White=0.10 (very precise) /Black=0.05 (flawless)} 1/2-1/2

[Event "Charlotte Summer IM B 2022"]
[Site "Charlotte"]
[Date "2022.07.26"]
[Round "3.4"]
[White "Adu, Oladapo"]
[Black "Wang, Tianqi"]
[Result "0-1"]
[ECO "A11"]
[WhiteElo "2056"]
[BlackElo "2402"]
[Annotator "TA"]
[PlyCount "64"]
[EventDate "2022.07.24"]
[EventType "tourn"]
[EventCountry "USA"]
[SourceTitle "playchess.com"]
[Source "ChessBase"]
[SourceQuality "1"]
[TimeControl "5400+30"]

{[%evp 9,64,6,18,5,5,5,22,2,27,-7,2,0,0,-8,-7,-21,-21,-31,-22,-18,-22,-51,-64,-64,-54,-56,-55,-66,-69,-89,-93,-113,-96,-112,-113,-287,-287,-289,-294,-637,-637,-615,-631,-626,-630,-546,-543,-1420,-833,-727,-460,-473,-431,-669,-428,-705,-489]} 1. c4 {[%emt 0:02:05]} c6 {[%emt 0:00:06]} 2. Nf3 {[%emt 0:01:33]} d5 {[%emt 0:00:15]} 3. e3 {[%emt 0:00:15]} Nf6 {[%emt 0:00:06]} 4. Nc3 {[%emt 0:00:39]} a6 {[%emt 0:00:21]} 5. b3 {[%emt 0:00:20]} Bg4 {[%emt 0:00:13]} 6. Be2 {[%emt 0:00:36] A11: English Opening: 1...c6.} e6 {[%emt 0:00:05]} 7. Bb2 {[%emt 0:00:22]} Bd6 {[%emt 0:00:08]} 8. d4 {[%emt 0:00:14] [#] The position is equal.} Qe7 $146 {[%emt 0:00:15]} ({Predecessor:} 8... Nbd7 9. Qc2 O-O 10. O-O Qa5 11. Nd2 Bxe2 12. Nxe2 Rad8 13. Ng3 c5 14. cxd5 Bxg3 15. dxe6 Bxh2+ 16. Kxh2 fxe6 {½-½ (28) Michiels,R (2251)-Mullon,J (2344) Belgium 2006}) 9. a3 {[%emt 0:00:26]} Nbd7 {[%emt 0:00:11]} 10. O-O {[%emt 0:00:33]} O-O {[%emt 0:00:05]} 11. Re1 {[%emt 0:00:13]} Rad8 {[%emt 0:00:33]} 12. Qc2 {[%emt 0:00:34]} Bf5 {[%emt 0:00:39]} 13. Bd3 {[%emt 0:00:24]} Bxd3 {[%emt 0:01:41]} 14. Qxd3 {[%emt 0:00:02]} e5 {[%emt 0:00:13][%cal Be6e5,Be5e4][%mdl 32] White must now prevent ...e4.} 15. Qf5 {[%emt 0:12:55][%cal Oc3d5]} e4 {[%emt 0:09:41]} 16. Nd2 {[%emt 0:01:02]} g6 {[%emt 0:01:51]} 17. Qh3 {[%emt 0:00:53]} Rfe8 {[%emt 0:00:19]} 18. f3 {[%emt 0:00:48]} exf3 {[%emt 0:01:50]} 19. gxf3 {[%emt 0:00:24]} Nh5 {[%emt 0:01:49][%cal Bf6h5,Bh5f4,Bf4h3,Bh3f2,Bf2d3][%mdl 32]} 20. cxd5 {[%emt 0:00:42]} cxd5 {[%emt 0:00:10]} 21. Kh1 {[%emt 0:03:03]} Ndf6 {[%emt 0:00:46][%cal Bd7f6,Bf6h5,Bh5f4,Bf4e2][%mdl 32] Black is more active.} 22. e4 $2 {[%emt 0:05:29] This costs White the game.} (22. b4 $17) 22... Nf4 $19 {[%emt 0:01:32]} 23. Qf1 {[%emt 0:00:34] [#]} N6h5 $1 {[%emt 0:01:01] Hoping for ...Qh4.} 24. e5 $2 {[%emt 0:02:24] [#]} (24. Re3) 24... Qh4 $1 {[%emt 0:00:41] aiming for ...Ng3+. Black is clearly winning.} 25. Qg1 {[%emt 0:04:10] Inhibits Ng3+.} Nh3 {[%emt 0:00:34]} 26. Qg2 {[%emt 0:00:11]} Nf2+ {[%emt 0:00:08]} 27. Kg1 {[%emt 0:00:10]} Nd3 {[%emt 1:18:47]} 28. Reb1 {[%emt 0:00:46]} Nhf4 {[%emt 0:00:00]} 29. Qg3 {[%emt 0:00:48]} Qe7 {[%emt 0:00:00]} 30. Kh1 {[%emt 0:08:16]} Bb8 {[%emt 0:00:00]} 31. Na4 {[%emt 0:04:08]} (31. Nf1 $142) 31... Ba7 {[%emt 0:00:00]} 32. Ra2 {[%emt 0:12:06]} (32. b4 $142 Ne2 33. Qg2) 32... Ne2 {[%emt 0:00:00] Weighted Error Value: White=0.68/Black=0.30} 0-1

[Event "Charlotte Summer IM B 2022"]
[Site "Charlotte"]
[Date "2022.07.26"]
[Round "3.5"]
[White "Ringoir, Tanguy"]
[Black "Avila Rodriguez, Joshua Ad"]
[Result "1-0"]
[ECO "E04"]
[WhiteElo "2490"]
[BlackElo "2210"]
[Annotator "TA"]
[PlyCount "83"]
[EventDate "2022.07.24"]
[EventType "tourn"]
[EventCountry "USA"]
[SourceTitle "playchess.com"]
[Source "ChessBase"]
[SourceQuality "1"]
[TimeControl "5400+30"]

{[%evp 15,83,15,27,17,27,17,13,14,13,18,18,14,20,0,0,-36,10,0,16,0,0,0,0,0,0,0,0,0,0,0,0,0,0,0,1,0,0,0,11,11,35,39,37,27,31,23,15,5,25,26,20,25,26,9,24,19,123,113,129,136,162,150,155,152,193,204,29996,29954,29997,29998]} 1. d4 {[%emt 0:00:19]} Nf6 {[%emt 0:00:18]} 2. c4 {[%emt 0:00:06]} e6 {[%emt 0:00:07]} 3. Nf3 {[%emt 0:00:10]} d5 {[%emt 0:00:12]} 4. g3 {[%emt 0:00:06]} dxc4 {[%emt 0:00:36]} 5. Bg2 {[%emt 0:00:08]} c5 {[%emt 0:00:18]} 6. O-O {[%emt 0:00:10]} Nc6 {[%emt 0:00:07]} 7. Qa4 {[%emt 0:00:07]} Bd7 {[%emt 0:00:18]} 8. Qxc4 {[%emt 0:00:07]} b5 {[%emt 0:00:17]} 9. Qc3 {[%emt 0:00:07] E04: Open Catalan: 5 Nf3.} b4 {[%emt 0:00:48]} 10. Qd3 {[%emt 0:00:21]} Rc8 {[%emt 0:01:23]} 11. Bf4 {[%emt 0:01:30] The position is equal.} Nd5 {[%emt 1:31:36]} 12. dxc5 {[%emt 1:33:19]} Bxc5 {[%emt 0:00:00]} 13. Nbd2 {[%emt 0:00:00]} Be7 {[%emt 0:00:00] [#]} 14. Ne4 $146 {[%emt 0:00:00]} (14. Nb3 {is more complex.} O-O 15. Rac1 Na5 16. Rxc8 Bxc8 17. Be5) ({Predecessor:} 14. Nc4 Nxf4 15. gxf4 O-O 16. Rfd1 Rc7 17. Rac1 Qb8 18. Nd6 Rd8 19. Qc2 b3 20. axb3 {½-½ (40) Jakovenko,D (2710)-Lu,S (2614) Moscow 2016}) 14... O-O {[%emt 0:00:00]} 15. Bd6 {[%emt 0:00:00]} h6 {[%emt 0:00:00]} (15... f5 $15 {is superior.} 16. Bxe7 fxe4 17. Bxd8 exd3) 16. Bxe7 {[%emt 0:00:00]} Qxe7 {[%emt 0:00:00]} 17. Rac1 {[%emt 0:00:00]} Rfd8 {[%emt 0:00:00]} 18. Qa6 {[%emt 0:00:00]} Nc7 {[%emt 0:00:00]} 19. Qb7 {[%emt 0:00:00]} Nd5 {[%emt 0:04:00]} 20. Qa6 {[%emt 0:00:00]} Nc7 {[%emt 0:00:00]} 21. Qc4 {[%emt 0:00:00]} Nd5 {[%emt 0:01:00]} 22. Qc5 {[%emt 0:00:00]} Be8 {[%emt 0:00:00]} 23. Qxe7 {[%emt 0:00:00]} Ndxe7 {[%emt 0:00:00]} 24. e3 {[%emt 0:00:00]} Rd5 {[%emt 0:00:00]} 25. Rc2 {[%emt 0:00:00]} Rcd8 {[%emt 0:00:00]} 26. Ned2 {[%emt 0:00:00]} f6 {[%emt 0:00:40]} 27. Nb3 {[%emt 0:00:35]} Rd1 {[%emt 0:01:35]} 28. Nfd2 {[%emt 0:00:32]} Rxf1+ {[%emt 0:00:06]} 29. Bxf1 {[%emt 0:00:02]} e5 {[%emt 0:00:59]} 30. Bb5 {[%emt 0:00:23]} Kf8 {[%emt 0:00:28]} 31. f3 {[%emt 0:01:06]} Nd4 {[%emt 0:00:38]} 32. exd4 {[%emt 0:00:02]} Bxb5 {[%emt 0:00:06]} 33. dxe5 {[%emt 0:00:02]} fxe5 {[%emt 0:00:14]} 34. Kf2 {[%emt 0:00:01]} Rc8 {[%emt 0:00:55]} 35. Nc5 {[%emt 0:00:30]} Nc6 {[%emt 0:00:41]} (35... Kg8 $11) 36. Nd7+ $16 {[%emt 0:00:22]} Ke7 {[%emt 0:00:32]} 37. Nxe5 {[%emt 0:00:02]} Kd6 {[%emt 0:00:27]} 38. f4 {[%emt 0:00:02]} Ne7 {[%emt 0:01:09]} 39. Ndc4+ {[%emt 0:01:32] Pair of Knights!} Kd5 {[%emt 0:00:00][%cal Rb5c4]} 40. Rd2+ {[%emt 0:00:20]} Ke6 $2 {[%emt 0:00:28]} (40... Kc5 $18) 41. Rd6+ {[%emt 0:01:27]} Kf5 {[%emt 0:00:05] [#]} 42. Kf3 $1 {[%emt 0:00:02] Weighted Error Value: White=0.03 (flawless) /Black=0.38} 1-0

[Event "Charlotte Summer IM B 2022"]
[Site "Charlotte"]
[Date "2022.07.26"]
[Round "4.1"]
[White "Zaloznyy, Mike"]
[Black "Avila Rodriguez, Joshua Ad"]
[Result "1-0"]
[ECO "A35"]
[WhiteElo "2171"]
[BlackElo "2210"]
[Annotator "TA"]
[PlyCount "99"]
[EventDate "2022.07.24"]
[EventType "tourn"]
[EventCountry "USA"]
[SourceTitle "playchess.com"]
[Source "ChessBase"]
[SourceQuality "1"]
[TimeControl "5400+30"]

{[%evp 22,99,26,32,20,27,41,37,40,41,80,68,72,72,71,60,71,74,76,62,61,50,70,74,72,4,87,70,116,110,104,50,55,49,108,75,89,80,90,89,88,81,81,83,90,67,105,115,108,112,162,166,169,160,235,201,231,226,381,376,415,408,508,506,501,481,838,815,779,761,694,704,788,776,29967,29969,29944,6311,29970,5502]} 1. c4 {[%emt 0:01:22]} c5 {[%emt 0:00:16]} 2. Nf3 {[%emt 0:00:24]} Nc6 {[%emt 0:00:11]} 3. Nc3 {[%emt 0:02:24]} g6 {[%emt 0:00:24]} 4. e3 {[%emt 0:00:32]} Nf6 {[%emt 0:00:41][%cal Bg8f6,Bf6d5,Bd5c3][%mdl 32]} 5. d4 {[%emt 0:00:16]} cxd4 {[%emt 0:00:25]} 6. exd4 {[%emt 0:01:15]} d5 {[%emt 0:00:07]} 7. cxd5 {[%emt 0:00:18]} Nxd5 {[%emt 0:00:13]} 8. Qb3 {[%emt 0:00:13]} Nxc3 {[%emt 0:00:23]} 9. Bc4 {[%emt 0:00:42]} Nd5 {[%emt 0:00:19]} 10. Bxd5 {[%emt 0:00:15]} e6 {[%emt 0:00:04]} 11. Bxc6+ {[%emt 0:00:32]} bxc6 {[%emt 0:00:07]} 12. O-O {[%emt 0:00:22][%cal Bh1f1,Bf1c1,Bc1c5][%mdl 32]} Qd5 {[%emt 0:00:36] A35: Symmetrical English: 2 Nc3 Nc6 3 Nf3.} 13. Qe3 $1 {[%emt 0:00:10][%mdl 4] is currently scoring better than 13.Be3.} Bg7 {[%emt 0:12:24]} 14. Bd2 {[%emt 0:10:22]} O-O {[%emt 0:11:03] White is slightly better.} 15. Rfc1 {[%emt 0:02:26]} Rd8 {[%emt 0:15:00][%cal Rg7d4]} 16. Rc5 {[%emt 0:04:01]} Qd6 {[%emt 0:05:18][%cal Rg7d4] [#]} 17. Ba5 $1 {[%emt 0:03:14] [#]} Re8 $146 {[%emt 0:09:19]} ({Predecessor:} 17... Rd7 18. Bc3 Bb7 19. Ne5 Bxe5 20. Rxe5 Qe7 21. Re1 Rd5 22. Rxd5 cxd5 23. Qd2 Ba6 {1-0 (34) Wang,H (2710)-Zuo,Y (2367) Hangzhou 2018}) 18. Ne5 {[%emt 0:09:19]} Bb7 {[%emt 0:00:50]} 19. Rac1 {[%emt 0:01:57]} Rac8 {[%emt 0:01:13]} 20. Qf4 {[%emt 0:07:09] 0x0.001e39e22443dp-1022s more active pieces.} f6 {[%emt 0:04:10] [#]} 21. Nxg6 {[%emt 0:04:22]} Qxf4 {[%emt 0:06:25]} (21... Bf8 22. Qxf6) 22. Nxf4 {[%emt 0:01:03]} Bh6 {[%emt 0:00:06]} 23. Nh5 {[%emt 0:03:05]} (23. g3 $16) 23... Kf7 {[%emt 0:01:29]} (23... Bxc1 $11 {keeps the balance.} 24. Nxf6+ Kf7 25. Nxe8 Bf4) 24. R1c3 {[%emt 0:07:48]} f5 {[%emt 0:08:06]} (24... Bf8 $14) 25. Re5 {[%emt 0:12:08]} Rg8 {[%emt 0:05:08][%cal Oc6c5]} 26. Rh3 {[%emt 0:04:47]} ({White should try} 26. f3 $16) 26... c5 $14 {[%emt 0:13:13]} 27. Ng3 {[%emt 0:01:15]} Rg6 {[%emt 0:00:33]} (27... Bg7 $14) 28. dxc5 {[%emt 0:15:57]} Bg7 {[%emt 0:02:19]} 29. Rxh7 {[%emt 0:01:13] And now Nh5 would win.} Kg8 {[%emt 0:00:10][%csl LRe5,LRh7] [#]} 30. Rxg7+ {[%emt 0:00:44]} Kxg7 {[%emt 0:00:07]} 31. Nh5+ {[%emt 0:02:16]} Kf7 {[%emt 0:00:12]} 32. Nf4 {[%emt 0:00:45]} Rg4 {[%emt 0:02:06]} 33. g3 {[%emt 0:01:35][%cal Bg2g3,Bg3f4][%mdl 32]} Rxf4 {[%emt 0:01:58]} 34. gxf4 {[%emt 0:00:04][%mdl 4096] Endgame KRB-KRB} Bd5 {[%emt 0:00:03]} 35. b4 {[%emt 0:02:57]} Bxa2 {[%emt 0:00:05]} (35... Rg8+ $16 {might work better.} 36. Kf1 Bc6) 36. Re3 $18 {[%emt 0:00:26]} Bd5 {[%emt 0:00:26]} 37. Rh3 {[%emt 0:00:13]} Kg6 {[%emt 0:00:14] Inhibits Rh7.} (37... Rg8+ $16 38. Rg3 Rc8) 38. Kf1 {[%emt 0:00:29]} Bc6 {[%emt 0:02:42]} 39. Ke2 {[%emt 0:00:16] Black must now prevent Kd3.} Kg7 $2 {[%emt 0:00:18]} (39... Re8 {keeps fighting.} 40. Bc7 Re7) 40. Ke3 {[%emt 0:00:15]} a6 {[%emt 0:00:43]} 41. Kd4 {[%emt 0:00:10]} Bd5 {[%emt 0:00:54]} 42. Ke5 {[%emt 0:00:14]} Rc6 {[%emt 0:00:32]} 43. Rg3+ {[%emt 0:00:46]} Kf7 {[%emt 0:00:08]} (43... Kh8 $142 44. Bb6 Bc4) 44. h4 {[%emt 0:01:27]} Rc8 {[%emt 0:00:26]} 45. h5 {[%emt 0:00:34]} Rh8 {[%emt 0:00:24]} 46. Rg5 {[%emt 0:00:32]} Bf3 {[%emt 0:00:33]} 47. Kd6 {[%emt 0:00:05]} Bxh5 {[%emt 0:00:48] [#]} 48. Rxh5 $1 {[%emt 0:00:37][%mdl 512]} Rxh5 {[%emt 0:00:07]} 49. c6 {[%emt 0:00:01][%cal Bc5c6,Bc6c7][%mdl 32] White threatens c7 and mate.} Rh1 {[%emt 0:00:22]} 50. c7 {[%emt 0:00:11] Weighted Error Value: White=0.10 (very precise) /Black=0.28 (precise)} 1-0